[Event "Bionext Festival 2019"]
[Site "Chihuahua"]
[Date "2019.11.30"]
[Round "1.2"]
[White "Ortiz Suarez, Isan Reynaldo"]
[Black "Carballo Jacquez, Emmanuel"]
[Result "1-0"]
[ECO "A25"]
[WhiteElo "2549"]
[BlackElo "1616"]
[Annotator "ChessBase"]
[PlyCount "89"]
[EventDate "2019.11.30"]
[EventType "swiss"]
[EventCountry "MEX"]
[SourceTitle "playchess.com"]
[Source "ChessBase"]
[SourceQuality "1"]
[TimeControl "5400+30"]

1. c4 {[%emt 0:00:00]} e5 {[%emt 0:00:04]} 2. g3 {[%emt 0:00:00]} Nc6 {[%emt 0:00:14]} 3. Bg2 {[%emt 0:00:00]} f5 {[%emt 0:00:54]} 4. Nc3 {[%emt 0:00:18]} Nf6 {[%emt 0:00:08]} 5. d3 {[%emt 0:00:22]} Bc5 {[%emt 0:00:51]} 6. Nf3 {[%emt 0:00:25]} O-O {[%emt 0:01:50]} 7. O-O {[%emt 0:00:39]} Qe7 {[%emt 0:01:09]} 8. Bg5 {[%emt 0:00:47]} Qf7 {[%emt 0:03:45]} 9. Bxf6 {[%emt 0:00:58]} Qxf6 {[%emt 0:00:12]} 10. Nd5 {[%emt 0:00:09]} Qd8 {[%emt 0:00:54]} 11. a3 {[%emt 0:02:35]} d6 {[%emt 0:10:42]} 12. e3 {[%emt 0:02:39]} a6 {[%emt 0:01:48]} 13. d4 {[%emt 0:01:53]} Ba7 {[%emt 0:03:16]} 14. dxe5 {[%emt 0:05:47]} Nxe5 {[%emt 0:02:43]} 15. Qb3 {[%emt 1:20:58]} c6 {[%emt 0:05:12]} 16. Nf4 {[%emt 0:00:00]} Qb6 {[%emt 0:06:41]} 17. Qc3 {[%emt 0:00:00]} Qc5 {[%emt 0:04:17]} 18. Rac1 {[%emt 0:00:00]} Nxf3+ {[%emt 0:02:14]} 19. Bxf3 {[%emt 0:00:00]} Qe5 {[%emt 0:00:26]} 20. Rfd1 {[%emt 0:00:00]} g5 {[%emt 0:07:22]} 21. Nh5 {[%emt 0:00:00]} Qxc3 {[%emt 0:04:06]} 22. Rxc3 {[%emt 0:00:00]} Rd8 {[%emt 0:00:10]} 23. Rcd3 {[%emt 0:00:00]} Bb8 {[%emt 0:00:42]} 24. e4 {[%emt 0:00:00]} Be6 {[%emt 0:08:33]} 25. exf5 {[%emt 0:00:00]} Bxf5 {[%emt 0:01:04]} 26. Be4 {[%emt 0:00:00]} Rf8 {[%emt 0:02:06]} 27. Bxf5 {[%emt 0:00:00]} Rxf5 {[%emt 0:00:05]} 28. g4 {[%emt 0:00:00]} Rf7 {[%emt 0:01:33]} 29. Ng3 {[%emt 0:00:00]} Rf4 {[%emt 0:02:54]} 30. Rd4 {[%emt 0:00:00]} Ba7 {[%emt 0:02:23]} 31. Rxf4 {[%emt 0:00:00]} gxf4 {[%emt 0:00:02]} 32. Ne4 {[%emt 0:00:00]} Rd8 {[%emt 0:00:50]} 33. Rxd6 {[%emt 0:00:00]} Rxd6 {[%emt 0:00:02]} 34. Nxd6 {[%emt 0:00:00]} Bd4 {[%emt 0:02:27]} 35. Nxb7 {[%emt 0:00:00]} Bxb2 {[%emt 0:00:44]} 36. a4 {[%emt 0:00:00]} f3 {[%emt 0:01:01]} 37. Nd8 {[%emt 0:00:00]} Kg7 {[%emt 0:02:29]} 38. Nxc6 {[%emt 0:00:00]} Kf6 {[%emt 0:01:51]} 39. Nb4 {[%emt 0:00:00]} a5 {[%emt 0:00:21]} 40. Nd3 {[%emt 0:00:00]} Bd4 {[%emt 0:02:21]} 41. h4 {[%emt 0:00:00]} h5 {[%emt 0:02:39]} 42. gxh5 {[%emt 0:00:00]} Kf5 {[%emt 0:00:16]} 43. c5 {[%emt 0:00:00]} Kg4 {[%emt 0:01:04]} 44. c6 {[%emt 0:00:00]} Bb6 {[%emt 0:01:51]} 45. h6 {[%emt 0:00:00]} 1-0

[Event "Bionext Festival 2019"]
[Site "Chihuahua"]
[Date "2019.11.30"]
[Round "1.3"]
[White "Esparza Ramirez, Joel Enrique"]
[Black "Cuenca Jimenez, Jose Fernando"]
[Result "0-1"]
[ECO "C01"]
[WhiteElo "1591"]
[BlackElo "2523"]
[Annotator "ChessBase"]
[PlyCount "72"]
[EventDate "2019.11.30"]
[EventType "swiss"]
[EventCountry "MEX"]
[SourceTitle "playchess.com"]
[Source "ChessBase"]
[SourceQuality "1"]
[TimeControl "5400+30"]

1. e4 {[%emt 0:00:00]} e6 {[%emt 0:00:45]} 2. d4 {[%emt 0:00:18]} d5 {[%emt 0:00:06]} 3. exd5 {[%emt 0:00:27]} exd5 {[%emt 0:00:05]} 4. Bd3 {[%emt 0:00:24]} Bd6 {[%emt 0:00:33]} 5. Nf3 {[%emt 0:01:16]} Bg4 {[%emt 0:00:14]} 6. O-O {[%emt 0:02:19]} Nc6 {[%emt 0:01:18]} 7. c3 {[%emt 0:06:05]} Nge7 {[%emt 0:00:22]} 8. Nbd2 {[%emt 0:01:53]} Qd7 {[%emt 0:00:34]} 9. Re1 {[%emt 0:03:33]} O-O-O {[%emt 0:01:43]} 10. b4 {[%emt 0:04:50]} Ng6 {[%emt 0:05:08]} 11. b5 {[%emt 0:12:27]} Nce7 {[%emt 0:02:06]} 12. Qa4 {[%emt 0:07:02]} Kb8 {[%emt 0:02:17]} 13. Ne5 {[%emt 0:03:56]} Nxe5 {[%emt 0:01:50]} 14. dxe5 {[%emt 0:01:04]} Bc5 {[%emt 0:00:04]} 15. Nb3 {[%emt 0:03:21]} Bb6 {[%emt 0:00:04]} 16. Be3 {[%emt 0:03:58]} Rhe8 {[%emt 0:09:20]} 17. Nc5 {[%emt 0:10:48]} Qc8 {[%emt 0:02:27]} 18. Qb4 {[%emt 0:03:41]} Bf5 {[%emt 0:03:57]} 19. Bf1 {[%emt 0:01:12]} Ng6 {[%emt 0:06:31]} 20. a4 {[%emt 0:05:52]} Nxe5 {[%emt 0:07:15]} 21. a5 {[%emt 0:01:48]} Bxc5 {[%emt 0:00:09]} 22. Qxc5 {[%emt 0:00:11]} b6 {[%emt 0:02:53]} 23. Qd4 {[%emt 0:05:05]} Re6 {[%emt 0:22:37]} 24. axb6 {[%emt 0:03:34]} cxb6 {[%emt 0:01:38]} 25. Qa4 {[%emt 0:12:14]} Qc7 {[%emt 0:02:42]} 26. Bd4 {[%emt 0:02:29]} Rde8 {[%emt 0:01:56]} 27. f4 {[%emt 0:02:39]} Nf3+ {[%emt 0:01:10]} 28. gxf3 {[%emt 0:00:49]} Rxe1 {[%emt 0:00:04]} 29. Be5 {[%emt 0:00:43]} R8xe5 {[%emt 0:02:01]} 30. fxe5 {[%emt 0:00:17]} Rxa1 {[%emt 0:00:22]} 31. Qxa1 {[%emt 0:00:05]} Qxe5 {[%emt 0:00:48]} 32. Qa3 {[%emt 0:00:21]} Qe3+ {[%emt 0:00:43]} 33. Kg2 {[%emt 0:00:12]} Bh3+ {[%emt 0:05:28]} 34. Kxh3 {[%emt 0:01:26]} Qxf3+ {[%emt 0:00:05]} 35. Kh4 {[%emt 0:00:11]} Qf4+ {[%emt 0:00:16]} 36. Kh5 {[%emt 0:00:54]} g6# {[%emt 0:00:11]} 0-1

[Event "Bionext Festival 2019"]
[Site "Chihuahua"]
[Date "2019.11.30"]
[Round "1.4"]
[White "Macieja, Bartlomiej"]
[Black "Lugo Aldana, Alejandro"]
[Result "1-0"]
[ECO "B42"]
[WhiteElo "2513"]
[BlackElo "1570"]
[Annotator "ChessBase"]
[PlyCount "79"]
[EventDate "2019.11.30"]
[EventType "swiss"]
[EventCountry "MEX"]
[SourceTitle "playchess.com"]
[Source "ChessBase"]
[SourceQuality "1"]
[TimeControl "5400+30"]

1. e4 {[%emt 0:00:00]} c5 {[%emt 0:16:01]} 2. Nf3 {[%emt 0:04:56]} e6 {[%emt 0:00:05]} 3. d4 {[%emt 0:00:06]} cxd4 {[%emt 0:00:04]} 4. Nxd4 {[%emt 0:00:03]} a6 {[%emt 0:00:07]} 5. Bd3 {[%emt 0:00:30]} Nf6 {[%emt 0:00:08]} 6. O-O {[%emt 0:02:24]} Qc7 {[%emt 0:00:33]} 7. Nf3 {[%emt 0:11:13]} d6 {[%emt 0:03:17]} 8. Bf4 {[%emt 0:00:39]} Nbd7 {[%emt 0:06:11]} 9. Nbd2 {[%emt 0:09:47]} Be7 {[%emt 0:20:15]} 10. a4 {[%emt 0:03:21]} b6 {[%emt 0:03:58]} 11. Nc4 {[%emt 0:02:20]} Bb7 {[%emt 0:16:08]} 12. Re1 {[%emt 0:04:17]} Ng4 {[%emt 0:12:30]} 13. h3 {[%emt 0:09:57]} Nge5 {[%emt 0:00:14]} 14. Nfxe5 {[%emt 0:00:03]} Nxe5 {[%emt 0:00:43]} 15. Bxe5 {[%emt 0:11:32]} dxe5 {[%emt 0:00:02]} 16. Qh5 {[%emt 0:00:06]} Bf6 {[%emt 0:05:17]} 17. Ra3 {[%emt 0:20:03]} Rb8 {[%emt 0:01:19]} 18. Ne3 {[%emt 0:04:19]} O-O {[%emt 0:05:54]} 19. Rc3 {[%emt 0:03:40]} Qe7 {[%emt 0:01:03]} 20. Rb3 {[%emt 0:01:19]} g6 {[%emt 0:00:55]} 21. Qe2 {[%emt 0:00:12]} Bc6 {[%emt 0:00:01]} 22. Bxa6 {[%emt 0:03:25]} Bxa4 {[%emt 0:00:01]} 23. Ra3 {[%emt 0:00:03]} Bc6 {[%emt 0:00:15]} 24. Qc4 {[%emt 0:01:03]} Bb7 {[%emt 0:01:43]} 25. Bxb7 {[%emt 0:00:09]} Rxb7 {[%emt 0:00:01]} 26. Rea1 {[%emt 0:01:01]} Qd7 {[%emt 0:00:56]} 27. Ra8 {[%emt 0:01:29]} Rxa8 {[%emt 0:00:42]} 28. Rxa8+ {[%emt 0:00:02]} Kg7 {[%emt 0:00:01]} 29. Qc8 {[%emt 0:00:28]} Qxc8 {[%emt 0:00:22]} 30. Rxc8 {[%emt 0:00:01]} Be7 {[%emt 0:00:30]} 31. Kf1 {[%emt 0:00:32]} f5 {[%emt 0:00:25]} 32. Rc6 {[%emt 0:00:37]} Kf7 {[%emt 0:00:12]} 33. Nc4 {[%emt 0:00:07]} b5 {[%emt 0:00:47]} 34. Nxe5+ {[%emt 0:01:09]} Kf6 {[%emt 0:00:01]} 35. Nd3 {[%emt 0:02:52]} fxe4 {[%emt 0:01:35]} 36. Nc5 {[%emt 0:01:56]} Bxc5 {[%emt 0:00:18]} 37. Rxc5 {[%emt 0:00:00]} e5 {[%emt 0:00:21]} 38. Ke2 {[%emt 0:00:40]} Kf5 {[%emt 0:00:40]} 39. Ke3 {[%emt 0:00:32]} g5 {[%emt 0:00:36]} 40. g4+ {[%emt 0:00:16]} 1-0

[Event "Bionext Festival 2019"]
[Site "Chihuahua"]
[Date "2019.11.30"]
[Round "1.5"]
[White "Ramos, Rubio Evelin Rubi"]
[Black "Della Morte, Pablo"]
[Result "0-1"]
[ECO "B92"]
[WhiteElo "1440"]
[BlackElo "2309"]
[Annotator "NA"]
[PlyCount "88"]
[EventDate "2019.11.30"]
[EventType "swiss"]
[EventCountry "MEX"]
[SourceTitle "playchess.com"]
[Source "ChessBase"]
[SourceQuality "1"]
[TimeControl "5400+30"]

1. e4 {[%emt 0:00:00]} c5 {[%emt 0:00:47]} 2. Nf3 {[%emt 0:00:00]} d6 {[%emt 0:00:09]} 3. d4 {[%emt 0:00:03]} cxd4 {[%emt 0:00:07]} 4. Nxd4 {[%emt 0:00:06]} Nf6 {[%emt 0:00:08]} 5. Nc3 {[%emt 0:00:30]} a6 {[%emt 0:00:07]} 6. Be2 {[%emt 0:01:15]} e5 {[%emt 0:00:10]} 7. Nb3 {[%emt 0:02:20]} Be7 {[%emt 0:00:13]} 8. Be3 {[%emt 0:01:31]} Be6 {[%emt 0:03:04]} 9. Qd2 {[%emt 0:07:04]} Nbd7 {[%emt 0:02:20]} 10. O-O {[%emt 0:03:51]} b5 {[%emt 0:00:58]} 11. f3 {[%emt 0:08:04]} O-O {[%emt 0:02:05]} 12. Rad1 {[%emt 0:03:01]} Qc7 {[%emt 0:14:01]} 13. Bg5 {[%emt 0:03:50]} b4 {[%emt 0:07:39]} 14. Nd5 {[%emt 0:15:56]} Bxd5 {[%emt 0:00:08]} 15. Bxf6 {[%emt 0:03:17]} Nxf6 {[%emt 0:00:29]} 16. exd5 {[%emt 0:01:48]} a5 {[%emt 0:00:08]} 17. f4 {[%emt 0:02:49]} Qb6+ {[%emt 0:10:30]} 18. Kh1 {[%emt 0:04:25]} Rfd8 {[%emt 0:06:30]} 19. Bc4 {[%emt 0:10:30]} a4 {[%emt 0:05:10]} 20. Nc1 {[%emt 0:05:08]} a3 {[%emt 0:00:57]} 21. Nd3 {[%emt 0:12:35]} Qc7 {[%emt 0:08:32]} 22. b3 {[%emt 0:07:12]} e4 {[%emt 0:00:05]} 23. Nxb4 {[%emt 0:00:27]} Ng4 {[%emt 0:00:07]} 24. Qe2 {[%emt 0:01:21]} f5 {[%emt 0:00:26]} 25. Nc6 {[%emt 0:01:04]} Re8 {[%emt 0:00:13]} 26. Bb5 {[%emt 0:01:33]} Bf6 {[%emt 0:01:35]} 27. h3 {[%emt 0:00:19]} Nh6 {[%emt 0:00:18]} 28. Qh5 {[%emt 0:01:01]} Qb6 {[%emt 0:00:55]} 29. c4 {[%emt 0:00:50]} Rf8 {[%emt 0:00:43]} 30. g4 {[%emt 0:03:10]} fxg4 {[%emt 0:00:52]} 31. hxg4 {[%emt 0:00:00]} e3 {[%emt 0:04:34]} 32. Rde1 {[%emt 0:00:00]} Rae8 {[%emt 0:00:24]} 33. g5 {[%emt 0:00:20]} Nf5 {[%emt 0:00:06]} 34. Rg1 {[%emt 0:00:44]} Bc3 {[%emt 0:00:10]} 35. Re2 {[%emt 0:00:37]} g6 {[%emt 0:00:24]} 36. Qh3 {[%emt 0:00:22]} Re4 {[%emt 0:01:56]} 37. Rh2 {[%emt 0:00:30]} Rf7 {[%emt 0:00:51]} 38. Qf3 {[%emt 0:00:25]} Re8 {[%emt 0:00:33]} 39. Rc1 {[%emt 0:00:41]} Bd2 {[%emt 0:01:31]} 40. Rd1 {[%emt 0:00:28]} e2 {[%emt 0:00:33]} 41. Rg1 {[%emt 0:00:49]} e1=Q {[%emt 0:01:37]} 42. Rxe1 {[%emt 0:00:10]} Rxe1+ {[%emt 0:00:07]} 43. Kg2 {[%emt 0:00:06]} Qg1+ {[%emt 0:00:19]} 44. Kh3 {[%emt 0:00:20]} Re3 {[%emt 0:29:29]} 0-1

[Event "Bionext Festival 2019"]
[Site "Chihuahua"]
[Date "2019.11.30"]
[Round "1.7"]
[White "Rojas Reyes, Bernardo"]
[Black "Corrales Jimenez, Zenia"]
[Result "0-1"]
[ECO "B34"]
[WhiteElo "1057"]
[BlackElo "2219"]
[Annotator "NA"]
[PlyCount "34"]
[EventDate "2019.11.30"]
[EventType "swiss"]
[EventCountry "MEX"]
[SourceTitle "playchess.com"]
[Source "ChessBase"]
[SourceQuality "1"]
[TimeControl "5400+30"]

1. e4 {[%emt 1:30:30]} c5 {[%emt 1:30:30]} 2. Nf3 {[%emt 0:00:30]} Nc6 {[%emt 0:00:30]} 3. d4 {[%emt 0:00:30]} cxd4 {[%emt 0:00:30]} 4. Nxd4 {[%emt 0:00:30]} g6 {[%emt 0:00:30]} 5. Nc3 {[%emt 0:00:30]} Bg7 {[%emt 0:00:30]} 6. Be3 {[%emt 0:00:30]} Nf6 {[%emt 0:00:30]} 7. Qd2 {[%emt 0:00:30]} Ng4 {[%emt 0:00:30]} 8. O-O-O {[%emt 0:00:30]} Nxe3 {[%emt 0:00:30]} 9. Qxe3 {[%emt 0:00:30]} Nxd4 {[%emt 0:00:30]} 10. Rxd4 {[%emt 0:00:30]} Bxd4 {[%emt 0:00:30]} 11. Qxd4 {[%emt 0:00:30]} O-O {[%emt 0:00:30]} 12. g4 {[%emt 0:00:30]} d6 {[%emt 0:00:30]} 13. g5 {[%emt 0:00:30]} Be6 {[%emt 0:00:30]} 14. f4 {[%emt 0:00:30]} Qa5 {[%emt 0:00:30]} 15. Nd5 {[%emt 0:00:30]} Bxd5 {[%emt 0:00:30]} 16. Qxd5 {[%emt 0:00:30]} Qe1+ {[%emt 0:00:30]} 17. Qd1 {[%emt 0:00:30]} Qxe4 {[%emt 0:00:30]} 0-1

[Event "Bionext Festival 2019"]
[Site "Chihuahua"]
[Date "2019.11.30"]
[Round "2.2"]
[White "Sierra Arballo, Jesus"]
[Black "Ortiz Suarez, Isan Reynaldo"]
[Result "0-1"]
[ECO "B30"]
[WhiteElo "2046"]
[BlackElo "2549"]
[Annotator "ChessBase"]
[PlyCount "64"]
[EventDate "2019.11.30"]
[EventType "swiss"]
[EventCountry "MEX"]
[SourceTitle "playchess.com"]
[Source "ChessBase"]
[SourceQuality "1"]
[TimeControl "5400+30"]

1. e4 {[%emt 0:00:00]} c5 {[%emt 0:00:00]} 2. Nf3 {[%emt 0:01:13]} d6 {[%emt 0:00:00]} 3. d3 {[%emt 0:00:12]} g6 {[%emt 0:00:00]} 4. g3 {[%emt 0:00:06]} Bg7 {[%emt 0:00:02]} 5. Bg2 {[%emt 0:00:08]} Nc6 {[%emt 0:00:06]} 6. h3 {[%emt 0:01:38]} Rb8 {[%emt 0:01:46]} 7. O-O {[%emt 0:00:07]} b5 {[%emt 0:00:26]} 8. Nc3 {[%emt 0:06:56]} Nf6 {[%emt 0:02:30]} 9. Be3 {[%emt 0:06:31]} b4 {[%emt 0:02:22]} 10. Ne2 {[%emt 0:00:22]} Nd7 {[%emt 0:01:00]} 11. d4 {[%emt 0:04:29]} O-O {[%emt 0:02:33]} 12. Qd2 {[%emt 0:01:03]} Ba6 {[%emt 0:08:32]} 13. Rfd1 {[%emt 0:04:22]} Qc7 {[%emt 0:02:25]} 14. Nf4 {[%emt 0:01:25]} Rfc8 {[%emt 0:02:07]} 15. Nd5 {[%emt 0:04:06]} Qd8 {[%emt 0:00:10]} 16. c3 {[%emt 0:08:32]} bxc3 {[%emt 0:01:22]} 17. bxc3 {[%emt 0:00:06]} e6 {[%emt 0:00:35]} 18. Nf4 {[%emt 0:01:59]} Na5 {[%emt 0:00:31]} 19. Rab1 {[%emt 0:06:55]} Nc4 {[%emt 0:00:34]} 20. Qe1 {[%emt 0:00:16]} Qa5 {[%emt 0:00:39]} 21. Nd2 {[%emt 0:08:06]} Nxe3 {[%emt 0:01:41]} 22. Qxe3 {[%emt 0:00:32]} Rxb1 {[%emt 0:00:48]} 23. Rxb1 {[%emt 0:02:05]} Qxa2 {[%emt 0:00:46]} 24. d5 {[%emt 0:07:33]} Nb6 {[%emt 0:05:24]} 25. Re1 {[%emt 0:04:13]} e5 {[%emt 0:02:27]} 26. Ne2 {[%emt 0:02:49]} Rb8 {[%emt 0:00:25]} 27. f4 {[%emt 0:02:37]} Nc4 {[%emt 0:00:58]} 28. Nxc4 {[%emt 0:00:14]} Bxc4 {[%emt 0:00:04]} 29. Nc1 {[%emt 0:05:52]} Qc2 {[%emt 0:00:46]} 30. f5 {[%emt 0:01:11]} Rb2 {[%emt 0:00:20]} 31. Qf3 {[%emt 0:00:38]} Bh6 {[%emt 0:00:07]} 32. fxg6 {[%emt 0:01:47]} hxg6 {[%emt 0:00:12]} 0-1

[Event "Bionext Festival 2019"]
[Site "Chihuahua"]
[Date "2019.11.30"]
[Round "2.3"]
[White "Cuenca Jimenez, Jose Fernando"]
[Black "Guerrero Rodriguez, Alejandra"]
[Result "1-0"]
[ECO "E10"]
[WhiteElo "2523"]
[BlackElo "2016"]
[Annotator "ChessBase"]
[PlyCount "29"]
[EventDate "2019.11.30"]
[EventType "swiss"]
[EventCountry "MEX"]
[SourceTitle "playchess.com"]
[Source "ChessBase"]
[SourceQuality "1"]
[TimeControl "5400+30"]

1. d4 {[%emt 0:00:00]} e6 {[%emt 0:00:43]} 2. c4 {[%emt 0:00:32]} Nf6 {[%emt 0:00:36]} 3. Nf3 {[%emt 0:00:36]} c5 {[%emt 0:04:03]} 4. d5 {[%emt 0:00:08]} b5 {[%emt 0:02:42]} 5. e4 {[%emt 0:00:03]} Nxe4 {[%emt 0:03:10]} 6. Bd3 {[%emt 0:00:05]} Nf6 {[%emt 0:03:51]} 7. Nc3 {[%emt 0:00:23]} b4 {[%emt 0:09:54]} 8. Ne4 {[%emt 0:01:53]} d6 {[%emt 0:02:48]} 9. dxe6 {[%emt 0:13:31]} fxe6 {[%emt 0:09:57]} 10. Nxf6+ {[%emt 0:02:13]} gxf6 {[%emt 0:04:42]} 11. Be4 {[%emt 0:06:03]} d5 {[%emt 0:03:50]} 12. cxd5 {[%emt 0:00:09]} f5 {[%emt 0:09:19]} 13. Ne5 {[%emt 0:04:24]} Qh4 {[%emt 0:04:01]} 14. Bf3 {[%emt 0:03:28]} Bb7 {[%emt 0:13:45]} 15. Qa4+ {[%emt 0:01:48] Bc8 Qd1 Bg7 Be4 Qd8 Bf3} 1-0

[Event "Bionext Festival 2019"]
[Site "Chihuahua"]
[Date "2019.11.30"]
[Round "2.4"]
[White "Garcia Quiroz, Omar Alejandro"]
[Black "Macieja, Bartlomiej"]
[Result "0-1"]
[ECO "A46"]
[WhiteElo "2034"]
[BlackElo "2513"]
[Annotator "ChessBase"]
[PlyCount "82"]
[EventDate "2019.11.30"]
[EventType "swiss"]
[EventCountry "MEX"]
[SourceTitle "playchess.com"]
[Source "ChessBase"]
[SourceQuality "1"]
[TimeControl "5400+30"]

1. d4 {[%emt 0:00:00]} Nf6 {[%emt 0:00:00]} 2. Nf3 {[%emt 0:00:00]} e6 {[%emt 0:00:00]} 3. Bg5 {[%emt 0:00:07]} h6 {[%emt 0:00:00]} 4. Bh4 {[%emt 0:00:23]} b6 {[%emt 0:00:03]} 5. e3 {[%emt 0:00:39]} Bb7 {[%emt 0:00:03]} 6. Bd3 {[%emt 0:00:42]} g5 {[%emt 0:00:44]} 7. Bg3 {[%emt 0:01:28]} g4 {[%emt 0:00:47]} 8. Nfd2 {[%emt 0:23:15]} Bxg2 {[%emt 0:05:08]} 9. Rg1 {[%emt 0:00:11]} Bb7 {[%emt 0:00:06]} 10. Be5 {[%emt 0:21:16]} h5 {[%emt 0:02:30]} 11. Ne4 {[%emt 0:02:15]} Bg7 {[%emt 0:21:24]} 12. Nbd2 {[%emt 0:06:07]} Nxe4 {[%emt 0:26:33]} 13. Bxe4 {[%emt 0:03:14]} Bxe4 {[%emt 0:00:14]} 14. Nxe4 {[%emt 0:13:30]} f6 {[%emt 0:25:13]} 15. Bg3 {[%emt 0:22:15]} f5 {[%emt 0:03:08]} 16. Nc3 {[%emt 0:00:09]} Nc6 {[%emt 0:06:09]} 17. Qe2 {[%emt 0:00:27]} h4 {[%emt 0:01:57]} 18. Bf4 {[%emt 0:00:05]} e5 {[%emt 0:00:03]} 19. dxe5 {[%emt 0:01:10]} Nxe5 {[%emt 0:00:08]} 20. O-O-O {[%emt 0:00:10]} c6 {[%emt 0:05:13]} 21. e4 {[%emt 0:00:16]} Qf6 {[%emt 0:00:35]} 22. exf5 {[%emt 0:01:16]} Qxf5 {[%emt 0:00:01]} 23. Bxe5 {[%emt 0:01:12]} Bxe5 {[%emt 0:00:02]} 24. Rxg4 {[%emt 0:00:48]} Kd8 {[%emt 0:00:32]} 25. h3 {[%emt 0:00:38]} Kc7 {[%emt 0:00:39]} 26. Qc4 {[%emt 0:00:08]} Bxc3 {[%emt 0:01:13]} 27. Qxc3 {[%emt 0:00:01]} Rag8 {[%emt 0:00:19]} 28. Qd4 {[%emt 0:00:21]} Qe6 {[%emt 0:00:44]} 29. Rxg8 {[%emt 0:01:37]} Rxg8 {[%emt 0:00:02]} 30. Qxh4 {[%emt 0:00:03]} Qxa2 {[%emt 0:00:10]} 31. Qf4+ {[%emt 0:00:22]} Kc8 {[%emt 0:00:07]} 32. Qd4 {[%emt 0:00:45]} Qe6 {[%emt 0:01:12]} 33. h4 {[%emt 0:01:07]} Rg4 {[%emt 0:00:06]} 34. Qh8+ {[%emt 0:00:18]} Kc7 {[%emt 0:00:26]} 35. h5 {[%emt 0:00:05]} Rh4 {[%emt 0:01:19]} 36. Qh7 {[%emt 0:00:44]} Ra4 {[%emt 0:00:38]} 37. Qd3 {[%emt 0:00:35]} Ra1+ {[%emt 0:00:22]} 38. Kd2 {[%emt 0:00:01]} Ra5 {[%emt 0:00:36]} 39. Qg3+ {[%emt 0:00:50]} Kc8 {[%emt 0:00:12]} 40. Qh4 {[%emt 0:00:49]} Qd6+ {[%emt 0:00:23]} 41. Ke1 {[%emt 0:00:38]} Re5+ {[%emt 0:00:04]} 0-1

[Event "Bionext Festival 2019"]
[Site "Chihuahua"]
[Date "2019.11.30"]
[Round "2.5"]
[White "Della Morte, Pablo"]
[Black "Ibarra Elizarraras, Juan Jose"]
[Result "1-0"]
[ECO "C07"]
[WhiteElo "2309"]
[BlackElo "1889"]
[Annotator "NA"]
[PlyCount "47"]
[EventDate "2019.11.30"]
[EventType "swiss"]
[EventCountry "MEX"]
[SourceTitle "playchess.com"]
[Source "ChessBase"]
[SourceQuality "1"]
[TimeControl "5400+30"]

1. e4 {[%emt 0:00:00]} e6 {[%emt 0:00:01]} 2. d4 {[%emt 0:00:23]} d5 {[%emt 0:00:15]} 3. Nd2 {[%emt 0:00:26]} c5 {[%emt 0:00:32]} 4. Ngf3 {[%emt 0:00:23]} Nd7 {[%emt 0:01:03]} 5. Bd3 {[%emt 0:11:09]} Bd6 {[%emt 0:02:25]} 6. e5 {[%emt 0:02:03]} Bc7 {[%emt 0:01:07]} 7. c3 {[%emt 0:00:20]} cxd4 {[%emt 0:00:49]} 8. cxd4 {[%emt 0:00:07]} f6 {[%emt 0:02:25]} 9. O-O {[%emt 0:01:47]} Ne7 {[%emt 0:04:58]} 10. exf6 {[%emt 0:11:54]} Nxf6 {[%emt 0:00:46]} 11. Re1 {[%emt 0:03:45]} O-O {[%emt 0:00:34]} 12. Ne5 {[%emt 0:01:45]} Nc6 {[%emt 0:01:03]} 13. Ndf3 {[%emt 0:00:31]} Bd6 {[%emt 0:03:10]} 14. Bg5 {[%emt 0:06:29]} Qb6 {[%emt 0:00:44]} 15. b3 {[%emt 0:11:45]} Bb4 {[%emt 0:07:26]} 16. Re3 {[%emt 0:05:27]} Kh8 {[%emt 0:28:50]} 17. Nxc6 {[%emt 0:01:17]} bxc6 {[%emt 0:00:26]} 18. Ne5 {[%emt 0:03:04]} Bc3 {[%emt 0:02:38]} 19. Rh3 {[%emt 0:05:52]} Ne4 {[%emt 0:08:06]} 20. Bxe4 {[%emt 0:00:55]} dxe4 {[%emt 0:00:26]} 21. Qh5 {[%emt 0:03:06]} h6 {[%emt 0:00:52]} 22. Bxh6 {[%emt 0:00:47]} Rf5 {[%emt 0:02:51]} 23. Bxg7+ {[%emt 0:00:18]} Kxg7 {[%emt 0:30:03]} 24. Qh8# {[%emt 0:28:27]} 1-0